bitfinex/quotes_BTCUSD_20220304
["timestamp","ask_amount","ask_price","bid_price","bid_amount"]
[1646417067465,0.0043,40931.0,40926.0,0.00120149]
[1646417067662,0.00022263,40930.0,40926.0,0.00120149]
[1646417068663,0.0043,40931.0,40926.0,0.00120149]
[1646417068863,0.00022263,40930.0,40926.0,0.00120149]
[1646417069724,0.0043,40931.0,40926.0,0.00120149]
[1646417070027,0.00021435,40930.0,40926.0,0.00120149]
[1646417071025,0.0043,40931.0,40926.0,0.00120149]
[1646417071227,0.00021435,40930.0,40926.0,0.00120149]
[1646417072226,0.0043,40931.0,40926.0,0.00120149]
[1646417072427,0.00021435,40930.0,40926.0,0.00120149]
[1646417073360,0.065436,40931.0,40926.0,0.00120149]
[1646417073759,0.00021491,40930.0,40926.0,0.00120149]
[1646417074658,0.065436,40931.0,40926.0,0.00120149]
[1646417074859,0.00021491,40930.0,40926.0,0.00120149]
[1646417075059,0.09788,40929.0,40926.0,0.00120149]
[1646417078326,0.41349122,40928.0,40926.0,0.00120149]
[1646417078524,0.11404257,40927.0,40926.0,0.00105931]
[1646417078723,0.51430136,40927.0,40926.0,0.00105931]
[1646417079224,0.16404257,40927.0,40926.0,0.00105931]
[1646417079423,0.68661155,40927.0,40926.0,0.00105931]
[1646417080027,0.09788,40927.0,40926.0,0.00105931]
[1646417080666,0.59788,40927.0,40926.0,0.00105931]
[1646417081066,0.5,40927.0,40926.0,0.00105931]
[1646417081765,0.09788,40930.0,40926.0,0.00105931]
[1646417081966,0.00020751,40929.0,40926.0,0.00105931]
[1646417082165,0.09788,40928.0,40926.0,0.0621899]
[1646417082365,0.00020751,40929.0,40926.0,0.0621899]
[1646417082970,0.09788,40930.0,40926.0,0.00105931]
[1646417083367,0.0002075,40930.0,40926.0,0.00105931]
[1646417084166,0.45456798,40931.0,40926.0,0.00105931]
[1646417084408,0.00020775,40930.0,40926.0,0.00105931]
[1646417085411,0.40026798,40930.0,40926.0,0.00105931]
[1646417085614,0.4004831,40930.0,40926.0,0.00105931]
[1646417086012,0.06135412,40930.0,40926.0,0.00105931]
[1646417086212,0.09788,40929.0,40926.0,0.00105931]
[1646417086612,0.40026798,40929.0,40926.0,0.00105931]
[1646417087015,0.40026798,40929.0,40927.0,0.366816]
[1646417087216,0.0219063,40930.0,40927.0,0.416816]
[1646417087814,0.02169118,40930.0,40927.0,0.416816]
[1646417088080,0.02169118,40930.0,40929.0,0.366816]
[1646417089080,0.02169118,40930.0,40929.0,0.666816]
[1646417089282,0.02169118,40930.0,40929.0,0.716816]
[1646417089480,0.02169118,40930.0,40929.0,0.816816]
[1646417090681,0.02169118,40930.0,40929.0,0.15]
[1646417091082,0.02169118,40930.0,40928.0,0.366816]
[1646417091283,0.02169118,40930.0,40929.0,0.1]
[1646417091682,0.02169118,40930.0,40926.0,0.47330475]
[1646417091913,0.42195916,40930.0,40926.0,0.17330475]
[1646417092211,0.42195916,40930.0,40926.0,0.12330475]
[1646417092412,0.40026798,40929.0,40926.0,0.00105931]
[1646417092812,0.40026798,40928.0,40926.0,0.00105931]
[1646417094614,0.09788,40927.0,40926.0,0.00105931]
[1646417094814,0.49814798,40927.0,40926.0,0.00105931]
[1646417095664,0.00021488,40929.0,40926.0,0.00105931]
[1646417095860,0.09788,40928.0,40926.0,0.00105931]
[1646417096062,0.14788,40928.0,40926.0,0.00105931]
[1646417096260,0.09788,40928.0,40926.0,0.00105931]
[1646417097065,0.09788,40928.0,40926.0,0.0009022]
[1646417097066,0.01401083,40927.0,40926.0,0.0009022]
[1646417097262,0.11497014,40927.0,40926.0,0.0009022]
[1646417097461,0.16397014,40927.0,40926.0,0.0009022]
[1646417097663,0.24688,40927.0,40926.0,0.0009022]
[1646417097861,0.38472012,40927.0,40926.0,0.0009022]
[1646417098061,0.24479688,40927.0,40926.0,0.0009022]
[1646417098261,0.30594088,40927.0,40926.0,0.0009022]
[1646417099062,0.40713114,40927.0,40926.0,0.0009022]
[1646417100111,0.58723966,40927.0,40926.0,0.0009022]
[1646417100516,0.28010852,40927.0,40926.0,0.0009022]
[1646417100713,0.68059008,40927.0,40926.0,0.0009022]
[1646417100914,0.28010852,40927.0,40926.0,0.0009022]
[1646417101113,0.68059008,40927.0,40926.0,0.0009022]
[1646417101914,0.28010852,40927.0,40926.0,0.0009022]
[1646417102616,0.28010852,40927.0,40926.0,0.6675932]
[1646417103074,0.28010852,40927.0,40926.0,0.0009022]
[1646417103474,0.37592552,40927.0,40926.0,0.0009022]
[1646417103673,0.77640708,40927.0,40926.0,0.0009022]
[1646417104073,0.37592552,40927.0,40926.0,0.0009022]
[1646417105172,0.37592552,40927.0,40926.0,0.00069489]
[1646417106174,0.42592552,40927.0,40926.0,0.00069489]
[1646417106828,1.445817,40926.0,40910.0,0.09000001]
[1646417107121,0.095817,40911.0,40910.0,0.09000001]
[1646417107321,0.12084939,40911.0,40910.0,0.09000001]
[1646417108019,0.10089484,40911.0,40910.0,0.09000001]
[1646417108222,0.40051823,40919.0,40913.0,0.02445]
[1646417108423,0.40051823,40926.0,40919.0,0.02445]
[1646417108621,0.28010852,40927.0,40920.0,0.366822]
[1646417109022,0.28010852,40927.0,40923.0,0.17491046]
[1646417109220,0.28010852,40927.0,40924.0,0.53637331]
[1646417109421,0.28010852,40927.0,40925.0,0.366822]
[1646417109624,8.52e-06,40927.0,40926.0,2.016822]
[1646417109822,8.52e-06,40927.0,40926.0,2.240272]
[1646417110221,8.52e-06,40927.0,40926.0,0.590272]
[1646417110423,8.52e-06,40927.0,40926.0,0.890272]
[1646417110679,8.52e-06,40927.0,40926.0,0.565822]
[1646417111274,8.52e-06,40927.0,40926.0,0.865822]
[1646417112774,8.52e-06,40927.0,40926.0,0.890272]
[1646417112971,8.52e-06,40927.0,40926.0,1.12845277]
[1646417113376,8.52e-06,40927.0,40926.0,0.890272]
[1646417114416,8.52e-06,40927.0,40926.0,0.865822]
[1646417117018,8.52e-06,40927.0,40926.0,0.816822]
[1646417117518,8.52e-06,40927.0,40924.0,0.0611304]
[1646417117722,8.52e-06,40927.0,40926.0,0.366822]
[1646417118070,8.52e-06,40927.0,40925.0,0.366822]
[1646417118273,8.52e-06,40927.0,40926.0,0.366822]
[1646417118671,8.52e-06,40927.0,40924.0,0.3611304]
[1646417118873,8.52e-06,40927.0,40925.0,0.366822]
[1646417119674,8.52e-06,40927.0,40926.0,0.666822]
[1646417120072,8.52e-06,40927.0,40926.0,0.3]
[1646417120875,8.52e-06,40927.0,40926.0,0.666822]
[1646417121274,8.52e-06,40927.0,40926.0,0.3]
[1646417121475,8.52e-06,40927.0,40924.0,0.0611304]
[1646417121676,8.52e-06,40927.0,40922.0,0.002]
[1646417121919,0.06115352,40927.0,40922.0,0.002]
[1646417122120,0.12647461,40927.0,40922.0,0.002]
[1646417122520,0.12647461,40927.0,40924.0,0.24631758]
[1646417122721,0.06532961,40927.0,40924.0,0.24631758]
[1646417122919,0.06539802,40927.0,40924.0,0.24631758]
[1646417123317,0.06539802,40927.0,40922.0,0.30272851]
[1646417123518,0.06539802,40927.0,40919.0,0.3]
[1646417123720,0.06539802,40927.0,40919.0,0.301]
[1646417123918,0.06532961,40927.0,40919.0,0.301]
[1646417124118,0.00020225,40925.0,40919.0,0.301]
[1646417124919,0.00020225,40925.0,40919.0,0.3]
[1646417125120,0.06532961,40927.0,40920.0,0.57795942]
[1646417125121,0.06032961,40927.0,40920.0,0.57795942]
[1646417125323,0.06032961,40927.0,40923.0,0.366822]
[1646417125567,0.00020226,40924.0,40923.0,0.366822]
[1646417125771,0.00020226,40924.0,40923.0,0.716822]
[1646417126170,0.00020226,40924.0,40923.0,0.766822]
[1646417126372,0.06032961,40927.0,40923.0,0.82793867]
[1646417126668,0.00020225,40926.0,40925.0,0.67153981]
[1646417126867,0.00020225,40926.0,40925.0,1.02153981]
[1646417127069,0.00020225,40926.0,40925.0,1.12153981]
[1646417127471,0.06032961,40927.0,40926.0,0.366822]
[1646417127669,0.06032961,40927.0,40926.0,0.666822]
[1646417127867,0.06032961,40927.0,40926.0,0.3]
[1646417128069,0.06032961,40927.0,40926.0,0.666822]
[1646417128469,0.06032961,40927.0,40920.0,0.002]
[1646417128670,0.05532961,40927.0,40920.0,0.002]
[1646417129071,0.05532961,40927.0,40917.0,0.2274]
[1646417129072,0.46166423,40926.0,40917.0,0.2274]
[1646417129322,0.51166423,40926.0,40917.0,0.2274]
[1646417129721,0.40051823,40925.0,40917.0,0.2274]
[1646417129925,0.06115,40923.0,40914.0,0.2978]
[1646417130131,0.0773737,40922.0,40914.0,0.113]
[1646417130323,0.0773737,40922.0,40913.0,0.004]
[1646417130324,0.01321025,40920.0,40913.0,0.004]
[1646417131323,0.01771289,40919.0,40913.0,0.004]
[1646417131525,0.01447204,40918.0,40913.0,0.004]
[1646417131724,0.01447204,40918.0,40913.0,0.24122669]
[1646417131928,0.15004187,40924.0,40910.0,0.39000001]
[1646417132131,0.45033979,40937.0,40933.0,0.07160424]
[1646417132328,0.45033979,40937.0,40917.0,0.45620895]
[1646417132329,0.45243979,40945.0,40937.0,0.366822]
[1646417132530,0.0032,40947.0,40945.0,0.7]
[1646417132727,0.0032,40947.0,40944.0,1.22246286]
[1646417132728,0.0011,40949.0,40946.0,1.2]
[1646417132927,0.0011,40949.0,40947.0,0.63197707]
[1646417133173,0.001,40955.0,40952.0,1.35]
[1646417133374,0.001,40957.0,40951.0,0.7472]
[1646417133375,0.0032,40956.0,40955.0,1.35]
[1646417133573,0.0032,40956.0,40955.0,1.399]
[1646417133770,0.00343139,40956.0,40955.0,1.549]
[1646417133969,0.00343139,40956.0,40955.0,0.28745]
[1646417134172,0.00343139,40956.0,40955.0,0.13745]
[1646417134370,0.01061139,40956.0,40955.0,0.08845]
[1646417134571,0.01061139,40956.0,40947.0,0.3]
[1646417134572,1.25,40955.0,40947.0,0.3]
[1646417134872,1.25,40955.0,40936.0,0.122203]
[1646417134873,0.061113,40953.0,40931.0,0.15]
[1646417135076,0.28958735,40937.0,40932.0,0.3]
[1646417135272,0.28958735,40937.0,40925.0,0.15]
[1646417135273,0.2126956,40933.0,40925.0,0.15]
[1646417135671,0.05,40932.0,40921.0,0.5126]
[1646417135972,0.05,40932.0,40922.0,0.15]
[1646417136173,0.05,40932.0,40928.0,0.32783513]
[1646417136471,0.87206487,40927.0,40923.0,0.12225185]
[1646417136670,0.33777467,40927.0,40926.0,0.516564]
[1646417137321,0.33777467,40927.0,40926.0,0.666564]
[1646417137725,0.33777467,40927.0,40926.0,0.95447475]
[1646417138121,0.33777467,40927.0,40926.0,0.616564]
[1646417138323,0.33777467,40927.0,40924.0,0.06111639]
[1646417138523,0.33777467,40927.0,40926.0,0.466564]
[1646417138723,0.33777467,40927.0,40923.0,0.12225252]
[1646417138724,1.35,40926.0,40923.0,0.12225252]
[1646417138927,1.20618,40925.0,40910.0,0.09000001]
[1646417139124,1.36605019,40925.0,40910.0,0.09000001]
[1646417139324,0.28131992,40911.0,40910.0,0.09000001]
[1646417139522,0.10618,40911.0,40910.0,0.09000001]
[1646417139923,0.82608,40911.0,40910.0,0.09000001]
[1646417142174,0.8189,40911.0,40910.0,0.09000001]
[1646417142781,0.7689,40911.0,40910.0,0.09000001]
[1646417142976,0.7689,40911.0,40910.0,0.7269654]
[1646417142977,0.7199,40911.0,40910.0,0.7269654]
[1646417143176,0.7199,40911.0,40910.0,1.4741654]
[1646417144338,0.7199,40911.0,40910.0,0.7269654]
[1646417144637,0.7199,40911.0,40910.0,0.45656401]
[1646417145038,0.7199,40911.0,40910.0,0.09000001]
[1646417146238,0.7199,40911.0,40910.0,0.60656401]
[1646417146639,0.7199,40911.0,40910.0,0.65656401]
[1646417146840,0.7199,40911.0,40910.0,0.60656401]
[1646417147341,0.7199,40911.0,40910.0,0.24000001]
[1646417147740,0.7199,40911.0,40910.0,0.60656401]
[1646417147942,0.7199,40911.0,40910.0,0.81457657]
[1646417148764,0.7199,40911.0,40910.0,0.86457657]
[1646417149064,0.7199,40911.0,40910.0,0.65656401]
[1646417149868,0.7199,40911.0,40910.0,0.60656401]
[1646417150065,0.7199,40911.0,40910.0,0.81624536]
[1646417150265,0.7199,40911.0,40910.0,0.86624536]
[1646417151068,0.7199,40911.0,40910.0,1.16624536]
[1646417152115,0.7199,40911.0,40910.0,0.95656401]
[1646417152717,0.7199,40911.0,40910.0,0.60656401]
[1646417153317,0.96397638,40911.0,40910.0,0.60656401]
[1646417153517,0.7199,40911.0,40910.0,0.60656401]
[1646417154118,0.7199,40911.0,40910.0,0.65656401]
[1646417154519,0.7199,40911.0,40910.0,0.90690018]
[1646417154718,0.71460244,40911.0,40910.0,0.90690018]
[1646417155118,0.71460244,40911.0,40910.0,1.20690018]
[1646417156572,0.71460244,40911.0,40910.0,1.20454918]
[1646417156971,0.71460244,40911.0,40910.0,1.95174918]
[1646417157570,0.71460244,40911.0,40910.0,1.99674918]
[1646417159431,0.71460244,40911.0,40910.0,2.27119918]
[1646417159629,0.71460244,40911.0,40910.0,2.47119918]
[1646417159829,0.69282244,40911.0,40910.0,2.47119918]
[1646417160028,0.0874739,40911.0,40910.0,2.47056918]
[1646417160433,0.0811939,40911.0,40910.0,2.47056918]
[1646417160632,0.0423209,40911.0,40910.0,2.47056918]
[1646417161634,0.02934907,40924.0,40918.0,0.06939445]
[1646417161830,0.02934907,40924.0,40919.0,1.34549799]
[1646417162031,0.02934907,40924.0,40923.0,0.27673399]
[1646417162231,0.02934907,40924.0,40923.0,0.08673398]
[1646417162429,0.02934907,40924.0,40923.0,0.36432222]
[1646417162830,0.02934907,40924.0,40923.0,0.66432222]
[1646417163075,0.02934907,40924.0,40923.0,1.41152222]
[1646417163276,0.02934907,40924.0,40923.0,1.45652222]
[1646417163676,2.9808011,40939.0,40925.0,0.7472]
[1646417163677,2.9196771,40939.0,40925.0,0.7472]
[1646417163876,2.9196771,40939.0,40929.0,0.7472]
[1646417163877,0.00086022,40934.0,40929.0,0.7472]
[1646417164077,0.00086022,40934.0,40933.0,0.7472]
[1646417164377,0.00086022,40934.0,40933.0,1.608896]
[1646417164575,0.00086022,40934.0,40933.0,1.2422]
[1646417164877,0.26933275,40940.0,40933.0,1.49016306]
[1646417165076,0.26933275,40940.0,40936.0,0.7472]
[1646417165276,0.26933275,40940.0,40937.0,0.3]
[1646417165477,0.26933275,40940.0,40938.0,0.366696]
[1646417165676,0.26933275,40940.0,40939.0,0.466696]
[1646417166080,0.26933275,40940.0,40939.0,0.516696]
[1646417166277,0.00021505,40942.0,40939.0,0.877804]
[1646417166678,0.00021505,40942.0,40939.0,0.93890954]
[1646417166918,0.00021505,40942.0,40939.0,0.57221354]
[1646417167122,0.23526923,40941.0,40939.0,0.57221354]
[1646417167320,0.23526923,40941.0,40940.0,0.3]
[1646417167619,0.23526923,40941.0,40940.0,0.52691198]
[1646417167818,0.00021504,40943.0,40940.0,0.62691198]
[1646417168323,0.00021504,40943.0,40941.0,0.1]
[1646417168519,0.2322319,40950.0,40943.0,0.061101]
[1646417168726,0.00021504,40944.0,40943.0,0.1]
[1646417169119,0.22688642,40949.0,40943.0,0.15]
[1646417169322,0.061109,40947.0,40943.0,0.15]
[1646417169923,0.061109,40947.0,40943.0,0.05]
[1646417170121,0.061109,40947.0,40942.0,0.004]
[1646417170326,0.337027,40946.0,40942.0,0.004]
[1646417170570,0.05,40946.0,40942.0,0.004]
[1646417171173,0.06112,40944.0,40938.0,0.15]
[1646417171376,0.2447839,40939.0,40938.0,0.15]
[1646417171572,0.11112,40944.0,40938.0,0.15]
[1646417171770,0.05,40944.0,40938.0,0.15]
[1646417171971,0.05,40944.0,40939.0,0.3]
[1646417172172,0.061106,40949.0,40940.0,0.366696]
[1646417172370,0.00023121,40946.0,40940.0,0.05]
[1646417172570,0.25088588,40945.0,40940.0,0.05]
[1646417172771,0.25088588,40945.0,40942.0,0.366696]
[1646417172973,0.30088588,40945.0,40942.0,0.3]
[1646417173372,0.061114,40944.0,40940.0,0.05]
[1646417173572,0.05994256,40944.0,40939.0,0.05]
[1646417173771,0.05994256,40944.0,40936.0,0.003]
[1646417174421,0.30088588,40945.0,40937.0,0.63178059]
[1646417174422,0.05,40945.0,40937.0,0.63178059]
[1646417174620,0.05,40945.0,40938.0,0.3]
[1646417174820,0.00223121,40946.0,40938.0,0.4]
[1646417175022,0.00023121,40946.0,40938.0,0.15]
[1646417175221,0.00023121,40946.0,40938.0,0.45]
[1646417175421,0.26004749,40941.0,40938.0,0.45]
[1646417175621,0.26004749,40941.0,40938.0,0.15]
[1646417175822,0.31004749,40941.0,40938.0,0.05]
[1646417176021,0.31004749,40941.0,40937.0,0.304]
[1646417176222,0.31004749,40941.0,40938.0,0.15]
[1646417176421,0.31004749,40941.0,40939.0,0.366696]
[1646417176627,0.31004749,40941.0,40938.0,0.05]
[1646417176825,0.31004749,40941.0,40937.0,0.054]
[1646417176826,0.43229249,40941.0,40937.0,0.054]
[1646417177023,0.43229249,40941.0,40935.0,0.05]
[1646417177224,0.43229249,40941.0,40933.0,0.15]
[1646417177423,0.31004749,40941.0,40933.0,0.15]
[1646417177823,0.37116949,40941.0,40933.0,0.15]
[1646417178067,0.37116949,40941.0,40933.0,0.05]
[1646417178267,0.37116949,40941.0,40933.0,0.1]
[1646417178471,0.19615243,40936.0,40933.0,0.1]
[1646417178667,0.37116949,40941.0,40933.0,0.1]
[1646417178867,0.37116949,40941.0,40933.0,0.4]
[1646417179272,0.31004749,40941.0,40933.0,0.522231]
[1646417179568,0.2098704,40940.0,40934.0,0.05]
[1646417179768,0.31004749,40941.0,40934.0,0.05]
[1646417180971,0.31004749,40941.0,40936.0,0.06111715]
[1646417181469,0.31004749,40941.0,40935.0,0.0244415]
[1646417181927,0.31004749,40941.0,40935.0,0.0284415]
[1646417182524,0.31004749,40941.0,40936.0,0.06111715]
[1646417184531,0.31004749,40941.0,40937.0,0.366696]
[1646417184728,0.31004749,40941.0,40937.0,0.416696]
[1646417184929,0.31004749,40941.0,40939.0,0.061112]
[1646417185128,0.31004749,40941.0,40939.0,0.30454608]
[1646417185790,0.31004749,40941.0,40939.0,0.061112]
[1646417186591,0.31004749,40941.0,40939.0,0.12222464]
[1646417187993,0.31004749,40941.0,40938.0,0.05]
[1646417190822,0.31004749,40941.0,40939.0,0.06111179]
[1646417192022,0.05,40941.0,40939.0,0.06111179]
[1646417192222,0.06132702,40946.0,40939.0,0.06111179]
[1646417192426,0.21725531,40943.0,40940.0,0.061114]
[1646417192724,0.05,40942.0,40939.0,0.11111179]
[1646417192923,0.25854098,40941.0,40939.0,0.11111179]
[1646417193373,0.25854098,40941.0,40939.0,0.05]
[1646417193572,0.25854098,40941.0,40938.0,0.05]
[1646417194174,0.387027,40940.0,40938.0,0.05]
[1646417194374,0.366696,40940.0,40938.0,0.05]
[1646417194774,0.25854098,40941.0,40938.0,0.05]
[1646417195077,0.25854098,40941.0,40938.0,0.04991927]
[1646417195276,0.366696,40940.0,40938.0,0.04991927]
[1646417195478,0.416696,40940.0,40938.0,0.04991927]
[1646417195676,0.366696,40939.0,40938.0,0.04991927]
[1646417195876,0.05,40940.0,40938.0,0.04991927]
[1646417196078,0.366696,40939.0,40938.0,0.04991927]
[1646417196678,0.30854098,40941.0,40938.0,0.04991927]
[1646417200028,0.366696,40940.0,40938.0,0.04991927]
[1646417200243,0.682027,40939.0,40931.0,0.06113652]
[1646417200430,0.061138,40937.0,40925.0,0.00021513]
[1646417200680,1.013396,40936.0,40925.0,0.00021513]
[1646417200881,1.058396,40936.0,40924.0,0.62428238]
[1646417201183,0.58489588,40926.0,40925.0,0.00021511]
[1646417201382,1.02506188,40926.0,40925.0,0.00021511]
[1646417201582,0.856862,40926.0,40925.0,0.00021511]
[1646417202179,0.337027,40925.0,40921.0,0.06114997]
[1646417202379,0.60399498,40924.0,40923.0,0.00021511]
[1646417202580,0.8108827,40924.0,40923.0,0.00021511]
[1646417203379,0.061156,40926.0,40922.0,0.3]
[1646417203580,0.061138,40930.0,40924.0,0.06113468]
[1646417203780,0.061138,40930.0,40925.0,0.35]
[1646417203981,0.002,40927.0,40925.0,0.35]
[1646417204180,0.002,40927.0,40926.0,0.666696]
[1646417204444,0.002,40927.0,40926.0,0.3]
[1646417205145,0.5,40934.0,40926.0,0.666696]
[1646417205349,0.5,40934.0,40928.0,0.06111908]
[1646417205545,0.5,40934.0,40930.0,0.12224393]
[1646417205744,0.5,40934.0,40930.0,0.17224393]
[1646417205946,0.366696,40933.0,40930.0,0.17224393]
[1646417206146,0.366696,40933.0,40930.0,0.05]
[1646417206545,0.21127594,40931.0,40927.0,0.061138]
[1646417206745,0.387027,40930.0,40927.0,0.061138]
[1646417206948,0.111139,40930.0,40929.0,0.12224521]
[1646417207146,0.05,40930.0,40929.0,0.17224521]
[1646417207347,0.366696,40932.0,40929.0,0.17224521]
[1646417207548,0.366696,40932.0,40930.0,0.05]
[1646417208382,0.366696,40932.0,40930.0,0.17225917]
[1646417208976,0.55998737,40932.0,40930.0,0.17225917]
[1646417209176,0.366696,40932.0,40930.0,0.17225917]
[1646417214323,0.42272735,40933.0,40930.0,0.17225917]
[1646417214529,0.111136,40933.0,40930.0,0.17225917]
[1646417215124,0.111136,40933.0,40932.0,0.26232297]
[1646417215326,0.111136,40933.0,40930.0,0.17225917]
[1646417217176,0.111136,40933.0,40931.0,0.666696]
[1646417217376,0.111136,40933.0,40932.0,0.3]
[1646417217576,0.111136,40933.0,40932.0,0.20218641]
[1646417219624,0.061136,40933.0,40932.0,0.20218641]
[1646417219827,0.111136,40933.0,40932.0,0.20218641]
[1646417220025,0.061136,40933.0,40931.0,0.05]
[1646417220226,0.061136,40933.0,40932.0,0.1]
[1646417220227,0.111136,40933.0,40932.0,0.1]
[1646417220626,0.061136,40933.0,40932.0,0.1]
[1646417220826,0.477832,40933.0,40932.0,0.1]
[1646417221927,0.448163,40933.0,40932.0,0.1]
[1646417222126,0.477832,40933.0,40932.0,0.1]
[1646417223168,0.398163,40933.0,40932.0,0.1]
[1646417223373,0.448163,40933.0,40932.0,0.1]
[1646417224371,0.477832,40933.0,40932.0,0.1]
[1646417224571,0.111136,40933.0,40932.0,0.04504152]
[1646417224772,0.477832,40933.0,40932.0,0.04504152]
[1646417230577,0.061136,40933.0,40932.0,0.34504152]
[1646417230776,0.061136,40933.0,40932.0,0.04504152]
[1646417232178,0.061136,40933.0,40932.0,0.44504152]
[1646417232578,0.041436,40933.0,40932.0,0.44504152]
[1646417232780,0.041436,40933.0,40932.0,0.83618752]
[1646417232980,0.041436,40933.0,40932.0,0.44504152]
[1646417233781,0.041436,40933.0,40932.0,0.14504152]
[1646417235144,0.041436,40933.0,40932.0,0.44504152]
[1646417235344,0.05,40934.0,40932.0,0.44504152]
[1646417235544,0.061118,40936.0,40932.0,0.44504152]
[1646417235745,0.111118,40936.0,40932.0,0.44504152]
[1646417237344,0.111118,40936.0,40932.0,0.50615583]
[1646417237743,0.111118,40936.0,40932.0,0.44504152]
[1646417238177,0.111118,40936.0,40933.0,0.366696]
[1646417238376,0.111118,40936.0,40932.0,0.44504152]
[1646417238577,0.111118,40936.0,40933.0,0.366696]
[1646417238777,0.111118,40936.0,40934.0,0.1]
[1646417238977,0.111118,40936.0,40935.0,0.3]
[1646417239381,0.111118,40936.0,40935.0,0.05]
[1646417239579,0.477814,40936.0,40935.0,0.05]
[1646417239778,0.337027,40935.0,40932.0,0.09504152]
[1646417239977,0.16080773,40935.0,40932.0,0.04504152]
[1646417240578,0.366696,40934.0,40932.0,0.04504152]
[1646417240780,0.661244,40934.0,40932.0,0.04504152]
[1646417241578,0.27406773,40933.0,40932.0,0.04504152]
[1646417241826,0.67222973,40933.0,40932.0,0.04504152]
[1646417247694,0.67222973,40933.0,40925.0,0.00020207]
[1646417247695,0.1467,40931.0,40925.0,0.00020207]
[1646417247895,0.061153,40927.0,40925.0,0.00020207]
[1646417248095,0.385927,40926.0,40925.0,0.00020207]
[1646417248296,0.435927,40926.0,40925.0,0.00020207]
[1646417248894,0.73970384,40926.0,40925.0,0.00020207]
[1646417249094,0.0989,40926.0,40923.0,0.00020206]
[1646417250127,0.061145,40924.0,40922.0,0.003]
[1646417250326,0.366696,40923.0,40922.0,0.00320207]
[1646417250529,0.416696,40923.0,40922.0,0.00320207]
[1646417251028,0.67169937,40923.0,40922.0,0.00320207]
[1646417251226,0.67169937,40923.0,40922.0,0.00020207]
[1646417251427,0.30500337,40923.0,40914.0,0.1141]
[1646417251629,0.061145,40921.0,40920.0,0.00020207]
[1646417252027,0.427841,40921.0,40920.0,0.00020207]
[1646417252228,0.477841,40921.0,40920.0,0.00020207]
[1646417252430,0.111145,40921.0,40920.0,0.00020207]
[1646417252626,0.111145,40921.0,40913.0,0.32445]
[1646417252627,0.061145,40921.0,40913.0,0.32445]
[1646417252828,0.061145,40921.0,40918.0,0.00020208]
[1646417253075,0.05,40920.0,40918.0,0.00020208]
[1646417253275,0.061145,40921.0,40918.0,0.25653689]
[1646417253675,0.061145,40921.0,40918.0,0.30653689]
[1646417253876,0.061145,40921.0,40918.0,0.30633481]
[1646417254979,0.061145,40921.0,40916.0,0.45]
[1646417255176,0.061145,40921.0,40917.0,0.00020208]
[1646417256180,0.061145,40921.0,40913.0,0.3]
[1646417256382,0.061145,40921.0,40911.0,0.2014]
[1646417256580,0.122295,40921.0,40911.0,0.2014]
[1646417256824,0.172295,40921.0,40911.0,0.2014]
[1646417257025,0.366696,40920.0,40911.0,0.006]
[1646417257225,0.172295,40921.0,40911.0,0.106]
[1646417257425,0.366696,40917.0,40911.0,0.1]
[1646417257629,0.061156,40917.0,40913.0,0.0002021]
[1646417257826,0.366696,40916.0,40913.0,0.0002021]
[1646417258428,0.26516506,40914.0,40913.0,0.0002021]
[1646417258628,0.26516506,40914.0,40910.0,0.09000001]
[1646417258826,0.26516506,40914.0,40912.0,0.0002021]
[1646417259028,0.061153,40917.0,40912.0,0.0002021]
[1646417259827,0.061153,40917.0,40910.0,0.44000001]
[1646417260136,0.26611637,40913.0,40912.0,0.0002021]
[1646417261083,0.26611637,40913.0,40911.0,0.23522334]
[1646417261284,0.26611637,40913.0,40911.0,0.05]
[1646417261683,0.26611637,40913.0,40910.0,0.14020264]
[1646417262282,0.26611637,40913.0,40910.0,0.14000001]
[1646417265640,0.061147,40914.0,40910.0,0.14000001]
[1646417266641,0.34103379,40914.0,40912.0,0.28750794]
[1646417266839,0.34103379,40914.0,40912.0,0.33250794]
[1646417267240,0.34103379,40914.0,40912.0,0.32530294]
[1646417267642,0.061147,40914.0,40912.0,0.32530294]
[1646417267861,0.061147,40914.0,40913.0,0.766696]
[1646417268084,0.061147,40914.0,40913.0,0.4]
[1646417270088,0.061132,40917.0,40913.0,1.513896]
[1646417270284,0.061132,40917.0,40914.0,0.416696]
[1646417270488,0.061132,40917.0,40915.0,0.0489]
[1646417270685,0.061132,40917.0,40916.0,0.35]
[1646417270885,0.061132,40917.0,40916.0,0.765596]
[1646417271090,0.061132,40917.0,40916.0,0.4989]
[1646417271687,0.061132,40917.0,40916.0,0.865596]
[1646417272134,0.061132,40917.0,40916.0,0.565596]
[1646417272930,0.061132,40917.0,40916.0,0.1989]
[1646417273135,0.061132,40917.0,40916.0,0.565596]
[1646417273334,0.061132,40917.0,40916.0,0.1989]
[1646417273531,0.061132,40917.0,40916.0,0.565596]
[1646417274332,0.061132,40917.0,40916.0,0.1989]
[1646417274533,0.061132,40917.0,40916.0,0.565596]
[1646417275685,0.061132,40917.0,40916.0,0.865596]
[1646417276082,0.061132,40917.0,40916.0,0.76773986]
[1646417278985,0.061132,40917.0,40916.0,0.40104386]
[1646417279186,0.061132,40917.0,40916.0,0.76773986]
[1646417279628,0.061132,40917.0,40916.0,1.51493986]
[1646417279828,0.061132,40921.0,40916.0,1.56493986]
[1646417280029,0.061132,40921.0,40918.0,0.366696]
[1646417280328,0.122256,40928.0,40919.0,0.4]
[1646417280932,0.122256,40928.0,40923.0,0.21787879]
[1646417281128,0.25581551,40926.0,40923.0,0.21787879]
[1646417281328,0.061128,40925.0,40923.0,0.21787879]
[1646417281728,0.061128,40925.0,40922.0,0.00021541]
[1646417282230,0.061128,40925.0,40922.0,0.00621541]
[1646417282628,0.061128,40925.0,40922.0,0.006]
[1646417283484,0.061128,40925.0,40921.0,0.00021541]
[1646417283880,0.061128,40925.0,40919.0,0.39919072]
[1646417284081,0.061128,40925.0,40921.0,0.00021541]
[1646417285082,0.061128,40925.0,40920.0,0.1]
[1646417285283,0.061128,40925.0,40921.0,0.00021541]
[1646417285883,0.061128,40925.0,40923.0,0.24630125]
[1646417286829,0.061128,40925.0,40922.0,0.00021541]
[1646417287433,0.061128,40925.0,40920.0,0.1]